bitfinex-derivatives/quotes_BTCF0:USTF0_20250505
["timestamp","ask_amount","ask_price","bid_price","bid_amount"]
[1746461955142,0.3940414,94237.0,94236.0,0.26181123]
[1746461955339,0.0818,94237.0,94236.0,0.26181123]
[1746461955540,0.1818,94237.0,94236.0,0.26181123]
[1746461955934,0.1818,94237.0,94236.0,0.26481123]
[1746461956138,0.1818,94237.0,94236.0,0.26781123]
[1746461956342,0.0818,94237.0,94236.0,0.26781123]
[1746461957049,0.0412,94237.0,94236.0,0.30681123]
[1746461960043,0.1412,94237.0,94236.0,0.30681123]
[1746461960735,0.0412,94237.0,94236.0,0.30681123]
[1746461961239,0.07,94240.0,94239.0,0.2122369]
[1746461961437,0.07,94240.0,94239.0,0.5730369]
[1746461962438,0.07,94240.0,94239.0,0.5760369]
[1746461962639,0.04,94245.0,94239.0,0.5790369]
[1746461962841,0.0396,94247.0,94239.0,0.5790369]
[1746461962842,0.072,94244.0,94241.0,0.0530579]
[1746461963044,0.072,94244.0,94243.0,0.2122279]
[1746461963436,0.072,94244.0,94243.0,0.2924279]
[1746461965840,0.05322,94256.0,94255.0,0.0530497]
[1746461966046,0.05322,94256.0,94255.0,0.3038506]
[1746461966047,0.22522,94256.0,94255.0,0.3038506]
[1746461966236,0.3374186,94256.0,94255.0,0.3038506]
[1746461966438,0.3374186,94256.0,94255.0,0.3422506]
[1746461966638,0.12522,94256.0,94255.0,0.3422506]
[1746461967448,0.072,94256.0,94255.0,0.7030506]
[1746461967745,0.072,94256.0,94255.0,0.7412506]
[1746461968540,0.0411,94265.0,94264.0,0.2121806]
[1746461968745,0.172,94265.0,94264.0,0.2121806]
[1746461969233,0.072,94265.0,94264.0,0.2929806]
[1746461969736,0.1098,94265.0,94264.0,0.2929806]
[1746461970647,0.072,94265.0,94264.0,0.2929806]
[1746461972852,0.1133,94265.0,94264.0,0.2929806]
[1746461973739,0.2133,94265.0,94264.0,0.2929806]
[1746461973945,0.30782,94265.0,94264.0,0.2929806]
[1746461974144,0.20782,94265.0,94264.0,0.2929806]
[1746461974341,0.4479984,94265.0,94264.0,0.2507806]
[1746461974546,0.5199984,94265.0,94264.0,0.2507806]
[1746461974751,0.4199984,94265.0,94264.0,0.2507806]
[1746461974947,0.5199984,94265.0,94264.0,0.2507806]
[1746461975248,0.4667784,94265.0,94264.0,0.2507806]
[1746461975748,0.3667784,94265.0,94264.0,0.2507806]
[1746461975948,0.1546,94265.0,94264.0,0.2507806]
[1746461977250,0.3667784,94265.0,94264.0,0.2507806]
[1746461980048,0.2122031,94254.0,94251.0,0.0530524]
[1746461980248,0.6118054,94253.0,94252.0,0.2538076]
[1746461980450,0.7118054,94253.0,94244.0,0.0404]
[1746461980657,0.2122459,94235.0,94234.0,0.00159175]
[1746461980846,0.5730459,94235.0,94234.0,0.0120363]
[1746461981158,0.5730459,94235.0,94234.0,0.21383995]
[1746461981345,0.6730459,94235.0,94234.0,0.00159175]
[1746461981746,0.6730459,94235.0,94234.0,0.21383995]
[1746461981947,0.6108459,94235.0,94234.0,0.21383995]
[1746461982146,0.6108459,94235.0,94234.0,0.22438238]
[1746461982349,0.2500459,94235.0,94234.0,0.22438238]
[1746461982549,0.2470459,94235.0,94234.0,0.22438238]
[1746461982754,0.2450459,94235.0,94234.0,0.22438238]
[1746461982954,0.0378,94235.0,94234.0,0.27048238]
[1746461983150,0.072,94239.0,94238.0,0.2122392]
[1746461983351,0.4138559,94245.0,94236.0,0.0530609]
[1746461983352,0.0378,94244.0,94236.0,0.0530609]
[1746461983549,0.2122414,94238.0,94237.0,0.0411]
[1746461983748,0.3122414,94238.0,94237.0,0.0411]
[1746461984152,0.3893414,94238.0,94237.0,0.0411]
[1746461984352,0.2092459,94235.0,94234.0,0.22678963]
[1746461984653,0.5700459,94235.0,94234.0,0.22678963]
[1746461985048,0.6700459,94235.0,94234.0,0.22678963]
[1746461985758,0.4608,94235.0,94234.0,0.22678963]
[1746461986255,0.6690459,94235.0,94234.0,0.22278963]
[1746461986454,0.7495459,94235.0,94234.0,0.22278963]
[1746461986855,0.7505459,94235.0,94234.0,0.22278963]
[1746461987157,0.7525459,94235.0,94234.0,0.22278963]
[1746461987649,0.7505459,94235.0,94234.0,0.22278963]
[1746461987850,0.7525459,94235.0,94234.0,0.22278963]
[1746461988260,0.7535459,94235.0,94234.0,0.22278963]
[1746461989652,0.7535459,94235.0,94234.0,0.2122472]
[1746461989847,0.5413,94235.0,94234.0,0.2122472]
[1746461990564,0.4413,94235.0,94234.0,0.2122472]
[1746461990857,0.4413,94235.0,94234.0,0.26439832]
[1746461991161,0.4413,94235.0,94234.0,0.30249832]
[1746461993863,0.401,94235.0,94234.0,0.30249832]
[1746461994660,0.0442,94235.0,94234.0,0.30249832]
[1746461995064,0.004,94235.0,94234.0,0.30249832]
[1746461997458,0.2566311,94242.0,94241.0,0.2122324]
[1746461997661,0.3003311,94242.0,94241.0,0.2122324]
[1746461998970,0.3718511,94242.0,94241.0,0.2122324]
[1746461999971,0.48296146,94242.0,94241.0,0.2122324]
[1746462001173,0.48396146,94242.0,94241.0,0.2122324]
[1746462002465,0.48096146,94242.0,94241.0,0.2122324]
[1746462002666,0.48396146,94242.0,94241.0,0.2122324]
[1746462003177,0.41244146,94242.0,94241.0,0.2122324]
[1746462003373,0.58396146,94242.0,94241.0,0.2122324]
[1746462003975,0.58396146,94242.0,94241.0,0.2530324]
[1746462004166,0.37173036,94242.0,94241.0,0.2530324]
[1746462004366,0.3897502,94242.0,94241.0,0.2960324]
[1746462006176,0.07752,94242.0,94241.0,0.2960324]
[1746462006578,0.07652,94242.0,94241.0,0.2960324]
[1746462007075,0.07752,94242.0,94241.0,0.2960324]
[1746462007578,0.07452,94242.0,94241.0,0.2960324]
[1746462007773,0.07652,94242.0,94241.0,0.2960324]
[1746462009475,0.005,94242.0,94241.0,0.2960324]
[1746462009982,0.004,94242.0,94241.0,0.7122324]
[1746462010379,0.002,94242.0,94241.0,0.7122324]
[1746462011271,0.001,94242.0,94241.0,0.7122324]
[1746462013383,0.07148,94252.0,94251.0,0.2122099]
[1746462014582,0.07148,94252.0,94251.0,0.2999099]
[1746462014974,0.07348,94252.0,94251.0,0.2999099]
[1746462015978,0.07348,94252.0,94251.0,0.7161099]
[1746462016576,0.07648,94252.0,94251.0,0.7161099]
[1746462020187,0.6780076,94252.0,94251.0,0.4162]
[1746462020386,0.2652977,94242.0,94241.0,0.2122256]
[1746462020587,0.6730394,94242.0,94241.0,0.2122256]
[1746462020997,0.4608,94242.0,94241.0,0.2122256]
[1746462021182,0.4487,94242.0,94241.0,0.2122256]
[1746462021494,0.0879,94242.0,94241.0,0.2122256]
[1746462021688,0.0889,94242.0,94241.0,0.2122256]
[1746462022092,0.0889,94242.0,94241.0,0.2566256]
[1746462024296,0.001,94242.0,94241.0,0.2566256]
[1746462025090,0.0466,94242.0,94241.0,0.2566256]
[1746462026685,0.1945,94242.0,94241.0,0.2566256]
[1746462026885,0.0965,94242.0,94241.0,0.2566256]
[1746462027092,0.4087302,94242.0,94241.0,0.2566256]
[1746462027997,0.4097302,94242.0,94241.0,0.2566256]
[1746462028397,0.2505576,94242.0,94235.0,0.4162]
[1746462028699,0.2122437,94237.0,94236.0,0.2122437]
[1746462028894,0.2122437,94236.0,94235.0,0.4162]
[1746462029090,0.3522437,94236.0,94235.0,0.6284459]
[1746462029793,0.3522437,94236.0,94235.0,0.4162]
[1746462030190,0.3522437,94236.0,94235.0,0.6284459]
[1746462030392,0.3532437,94236.0,94235.0,0.6284459]
[1746462030592,0.4532437,94236.0,94235.0,0.6284459]
[1746462030796,0.4532437,94236.0,94235.0,0.2122459]
[1746462031693,0.241,94236.0,94235.0,0.2122459]
[1746462032200,0.4532437,94236.0,94235.0,0.2122459]
[1746462033994,0.141,94236.0,94235.0,0.2122459]
[1746462034194,0.241,94236.0,94235.0,0.2122459]
[1746462034498,0.141,94236.0,94235.0,0.2122459]
[1746462034690,0.241,94236.0,94235.0,0.2122459]
[1746462034889,0.242,94236.0,94235.0,0.2122459]
[1746462035403,0.4542437,94236.0,94235.0,0.2122459]
[1746462035703,0.142,94236.0,94235.0,0.2122459]
[1746462035894,0.242,94236.0,94235.0,0.2122459]
[1746462038201,0.4542437,94236.0,94235.0,0.2122459]
[1746462041601,0.2122639,94228.0,94227.0,0.2122594]
[1746462041799,0.7449839,94228.0,94227.0,0.2122594]
[1746462042306,0.7887839,94228.0,94227.0,0.2122594]
[1746462042904,0.8370839,94228.0,94227.0,0.2122594]
[1746462043203,0.3762839,94228.0,94227.0,0.2122594]
[1746462043508,0.3762817,94228.0,94227.0,0.2122594]
[1746462043908,0.4762817,94228.0,94227.0,0.2122594]
[1746462044110,0.212273,94225.0,94222.0,0.00159198]
[1746462044308,0.3069707,94224.0,94223.0,0.260173]
[1746462044511,0.31389097,94224.0,94223.0,0.260173]
[1746462045612,0.31389097,94224.0,94223.0,0.262173]
[1746462045812,0.41389097,94224.0,94223.0,0.262173]
[1746462046515,0.41589097,94224.0,94223.0,0.262173]
[1746462047313,0.41789097,94224.0,94223.0,0.0479]
[1746462047513,0.212273,94223.0,94222.0,0.00159198]
[1746462047709,0.623073,94223.0,94222.0,0.00159198]
[1746462047914,0.712373,94223.0,94222.0,0.21386718]
[1746462048217,0.81850363,94223.0,94222.0,0.00159198]
[1746462048511,0.92463563,94223.0,94222.0,0.00159198]
[1746462048925,0.92563563,94223.0,94222.0,0.00159198]
[1746462049115,0.81950363,94223.0,94222.0,0.00159198]
[1746462049512,0.2123045,94209.0,94206.0,0.0974777]
[1746462049716,0.3842245,94209.0,94208.0,0.2566045]
[1746462050114,0.2842245,94209.0,94208.0,0.2566045]
[1746462050314,0.2842245,94209.0,94208.0,0.3048045]
[1746462050623,0.3842245,94209.0,94208.0,0.2566045]
[1746462051011,0.3842245,94209.0,94208.0,0.0453]
[1746462051212,0.3842245,94209.0,94208.0,0.001]
[1746462051721,0.3842245,94209.0,94208.0,0.2614068]
[1746462051916,0.49037203,94209.0,94208.0,0.003]
[1746462052118,0.64652003,94209.0,94208.0,0.003]
[1746462056912,0.69992003,94209.0,94208.0,0.003]
[1746462059025,0.2123113,94206.0,94205.0,0.00106151]
[1746462059618,0.31845883,94206.0,94205.0,0.00106151]
[1746462060222,0.31845883,94206.0,94205.0,0.10936151]
[1746462060421,0.37115883,94206.0,94205.0,0.11136151]
[1746462061328,0.37115883,94206.0,94205.0,0.11336151]
[1746462062516,0.37115883,94206.0,94205.0,0.00506151]
[1746462064430,0.37515883,94206.0,94205.0,0.00106151]
[1746462064635,0.37815883,94206.0,94205.0,0.00106151]
[1746462067530,0.44995883,94206.0,94205.0,0.00106151]
[1746462068032,0.49725883,94206.0,94205.0,0.21337501]
[1746462068831,0.49725883,94206.0,94205.0,0.31887501]
[1746462069836,0.49725883,94206.0,94205.0,0.10656151]
[1746462071033,0.55495883,94206.0,94205.0,0.10656151]
[1746462071629,0.48315883,94206.0,94205.0,0.10656151]
[1746462071831,0.55495883,94206.0,94205.0,0.10656151]
[1746462073234,0.55295883,94206.0,94205.0,0.10656151]
[1746462074641,0.55095883,94206.0,94205.0,0.10656151]
[1746462074933,0.49525883,94206.0,94205.0,0.10656151]
[1746462075135,0.49625883,94206.0,94205.0,0.10656151]
[1746462076437,0.49525883,94206.0,94205.0,0.10656151]
[1746462077428,0.49625883,94206.0,94205.0,0.10656151]
[1746462078431,0.55185883,94206.0,94205.0,0.10656151]
[1746462078629,0.54885883,94206.0,94205.0,0.10656151]
[1746462078828,0.55185883,94206.0,94205.0,0.10656151]
[1746462079639,0.48005883,94206.0,94205.0,0.05396151]
[1746462079933,0.3623248,94200.0,94199.0,0.0569]
[1746462080139,0.7231248,94200.0,94199.0,0.0569]
[1746462080326,0.2123293,94198.0,94197.0,0.0577]
[1746462081039,0.31848922,94198.0,94197.0,0.0577]
[1746462081233,0.37218922,94198.0,94197.0,0.0577]
[1746462081839,0.42218922,94198.0,94197.0,0.0577]
[1746462082040,0.42318922,94198.0,94197.0,0.0577]
[1746462082635,0.42418922,94198.0,94197.0,0.0577]
[1746462084038,0.42518922,94198.0,94197.0,0.0577]
[1746462084236,0.42618922,94198.0,94197.0,0.0577]
[1746462086846,0.2123473,94190.0,94189.0,0.055]
[1746462087039,0.7937073,94190.0,94189.0,0.055]
[1746462087240,0.7437073,94190.0,94189.0,0.055]
[1746462087639,0.96076722,94190.0,94189.0,0.055]
[1746462088145,0.96076722,94190.0,94189.0,0.056]
[1746462089341,0.97156715,94190.0,94189.0,0.001]
[1746462091240,0.2123518,94188.0,94187.0,0.00159257]
[1746462091844,0.318523,94188.0,94187.0,0.00159257]
[1746462092146,0.368523,94188.0,94187.0,0.00159257]
[1746462093138,0.369523,94188.0,94187.0,0.00159257]
[1746462094149,0.441123,94188.0,94187.0,0.00159257]
[1746462104248,1.162723,94188.0,94187.0,0.00159257]
[1746462105455,1.215863,94188.0,94187.0,0.00159257]
[1746462106756,1.218863,94188.0,94187.0,0.00159257]
[1746462106956,1.221863,94188.0,94187.0,0.00159257]
[1746462107349,1.168723,94188.0,94187.0,0.00159257]
[1746462107548,1.221863,94188.0,94187.0,0.00159257]
[1746462107749,1.168723,94188.0,94187.0,0.00159257]
[1746462107949,0.447123,94188.0,94187.0,0.00159257]
[1746462109260,0.057,94188.0,94187.0,0.21394667]
[1746462109449,0.0776,94188.0,94187.0,0.21394667]
[1746462109649,0.0776,94188.0,94187.0,0.46394667]
[1746462109851,0.0766,94188.0,94187.0,0.21394667]
[1746462110158,0.0756,94188.0,94187.0,0.44364667]
[1746462110555,0.0746,94188.0,94187.0,0.44364667]
[1746462110953,0.0716,94188.0,94187.0,0.44464667]
[1746462112646,0.0706,94188.0,94187.0,0.44564667]
[1746462112851,0.0706,94188.0,94187.0,0.44464667]
[1746462113054,0.0706,94188.0,94187.0,0.44564667]
[1746462113546,1.166,94205.0,94187.0,0.75566457]
[1746462113752,0.1,94193.0,94192.0,0.2123428]
[1746462113959,0.0706,94201.0,94200.0,0.2123248]
[1746462114253,0.1706,94201.0,94200.0,0.2123248]
[1746462114852,0.1706,94201.0,94200.0,0.3191248]
[1746462115254,0.3829225,94201.0,94200.0,0.3191248]
[1746462115861,0.3123225,94201.0,94200.0,0.3191248]
[1746462116155,0.3849225,94201.0,94200.0,0.3191248]
[1746462116363,0.0726,94201.0,94200.0,0.3191248]
[1746462116658,0.0736,94201.0,94200.0,0.3191248]
[1746462117161,0.2859225,94201.0,94200.0,0.3191248]
[1746462117353,0.0736,94201.0,94200.0,0.3191248]
[1746462118154,0.0736,94201.0,94200.0,0.4391248]
[1746462119265,0.0726,94201.0,94200.0,0.4391248]
[1746462119855,0.07212,94201.0,94200.0,0.4391248]
[1746462120056,0.07012,94208.0,94207.0,0.212309]
[1746462121067,0.07012,94208.0,94207.0,0.322209]
[1746462121256,0.07312,94208.0,94207.0,0.442209]
[1746462121459,0.07312,94208.0,94207.0,0.45292032]
[1746462122460,0.07512,94208.0,94207.0,0.45292032]
[1746462123364,0.005,94208.0,94207.0,0.45292032]
[1746462126771,0.005,94208.0,94207.0,0.86912032]
[1746462130176,0.003,94208.0,94207.0,0.87012032]
[1746462130468,0.0574,94212.0,94211.0,0.2123]
[1746462131475,0.0574,94212.0,94211.0,0.3248]
[1746462132171,0.2696977,94212.0,94211.0,0.3248]
[1746462132475,0.1145,94212.0,94211.0,0.3248]
[1746462133075,0.1155,94212.0,94211.0,0.3248]
[1746462133274,0.1165,94212.0,94211.0,0.3248]
[1746462133576,0.3287977,94212.0,94211.0,0.3248]
[1746462133776,0.1165,94212.0,94211.0,0.3248]
[1746462136678,0.3287977,94212.0,94211.0,0.3248]
[1746462137177,0.1165,94212.0,94211.0,0.3248]
[1746462137677,0.3277977,94212.0,94211.0,0.3248]
[1746462138478,0.1155,94212.0,94211.0,0.3248]
[1746462139482,0.1145,94212.0,94211.0,0.3248]
[1746462140377,0.1155,94212.0,94211.0,0.3248]
[1746462141381,0.3277977,94212.0,94211.0,0.3248]
[1746462143480,0.1155,94212.0,94211.0,0.3248]
[1746462144273,0.3277977,94212.0,94211.0,0.3248]
[1746462145880,0.1145,94212.0,94211.0,0.3248]
[1746462146084,0.1155,94212.0,94211.0,0.3248]
[1746462146976,0.1165,94212.0,94211.0,0.3248]
[1746462147484,0.1155,94212.0,94211.0,0.3248]
[1746462147885,0.3277977,94212.0,94211.0,0.3248]
[1746462148186,0.3287977,94212.0,94211.0,0.3248]
[1746462148985,0.1165,94212.0,94211.0,0.3248]
[1746462149178,0.3287977,94212.0,94211.0,0.3248]
[1746462149685,0.3277977,94212.0,94211.0,0.3248]
[1746462149983,0.2123045,94209.0,94208.0,0.4162]
[1746462150177,0.2812645,94209.0,94208.0,0.4162]
[1746462150378,0.38740865,94209.0,94208.0,0.4162]
[1746462150679,0.39814697,94209.0,94208.0,0.4162]
[1746462150983,0.95279047,94209.0,94182.0,0.3608]
[1746462151178,0.5731518,94188.0,94176.0,0.1647]
[1746462151383,0.7421118,94188.0,94181.0,0.2123671]
[1746462151683,0.7421118,94188.0,94183.0,0.2654526]
[1746462151684,0.8490118,94188.0,94183.0,0.2654526]
[1746462151877,0.8490118,94188.0,94183.0,0.2123625]
[1746462152589,0.8490118,94188.0,94184.0,0.2123607]
[1746462153089,0.8490118,94188.0,94187.0,0.00559257]
[1746462153778,0.8490118,94188.0,94187.0,0.00959257]
[1746462155580,0.48286,94188.0,94187.0,0.22194667]
[1746462155986,0.6952118,94188.0,94187.0,0.22194667]
[1746462156382,0.48286,94188.0,94187.0,0.32994667]
[1746462156991,0.6952118,94188.0,94187.0,0.32994667]
[1746462158789,0.7952118,94188.0,94187.0,0.11759257]
[1746462158994,0.6952118,94188.0,94187.0,0.32994667]
[1746462159481,0.7952118,94188.0,94187.0,0.11759257]
[1746462160291,0.6952118,94188.0,94187.0,0.00959257]
[1746462160493,0.7952118,94188.0,94187.0,0.00959257]
[1746462160683,0.7952118,94188.0,94187.0,0.22194667]
[1746462161193,0.7952118,94188.0,94187.0,0.00959257]
[1746462161387,0.7262518,94188.0,94187.0,0.00959257]
[1746462161597,0.7952118,94188.0,94187.0,0.00959257]
[1746462164593,0.7262518,94188.0,94187.0,0.00959257]
[1746462164796,0.7952118,94188.0,94187.0,0.00959257]
[1746462165398,0.6952118,94188.0,94187.0,0.27564667]
[1746462165582,0.6952118,94188.0,94187.0,0.06329257]
[1746462165989,0.7952118,94188.0,94187.0,0.06329257]
[1746462168813,0.7952118,94188.0,94187.0,0.27564667]
[1746462169713,0.7952118,94188.0,94187.0,0.27364667]
[1746462170215,0.7952118,94188.0,94187.0,0.27164667]
[1746462170908,0.7952118,94188.0,94187.0,0.26764667]
[1746462171114,0.7952118,94188.0,94187.0,0.26964667]
[1746462171617,0.7952118,94188.0,94187.0,0.26764667]
[1746462171809,0.7962118,94188.0,94187.0,0.26764667]
[1746462172009,0.7962118,94188.0,94187.0,0.05529257]
[1746462172414,0.7972118,94188.0,94187.0,0.05529257]
[1746462172601,0.7972118,94188.0,94187.0,0.00159257]
[1746462174014,0.6972118,94188.0,94187.0,0.21394667]
[1746462174213,0.0530778,94206.0,94205.0,0.2123135]
[1746462174519,0.16896,94206.0,94205.0,0.2123135]
[1746462174817,0.06896,94206.0,94205.0,0.22283395]
[1746462175408,0.06896,94206.0,94205.0,0.27603395]
[1746462175604,0.06896,94206.0,94205.0,0.33293395]
[1746462176416,0.0527,94214.0,94213.0,0.2122955]
[1746462176721,0.12166,94214.0,94213.0,0.2122955]
[1746462177420,0.12166,94214.0,94213.0,0.3221955]
[1746462177609,0.12466,94214.0,94213.0,0.3221955]
[1746462177810,0.12766,94214.0,94213.0,0.3221955]
[1746462180020,0.12466,94214.0,94213.0,0.3221955]
[1746462180518,0.12166,94214.0,94213.0,0.3221955]
[1746462182018,0.12166,94214.0,94213.0,0.1099]
[1746462182213,0.12166,94214.0,94213.0,0.3221955]
[1746462183017,0.22166,94214.0,94213.0,0.3221955]
[1746462183619,0.4339532,94214.0,94213.0,0.3221955]
[1746462183825,0.22166,94214.0,94208.0,0.3608]
[1746462184025,0.2122995,94212.0,94209.0,0.0557]
[1746462184320,0.0530811,94201.0,94187.0,0.00159257]
[1746462184624,0.06852,94202.0,94201.0,0.321103]
[1746462185216,0.06852,94202.0,94201.0,0.377203]
[1746462185618,0.06852,94202.0,94201.0,0.3241225]
[1746462185924,0.2808403,94202.0,94201.0,0.3251225]
[1746462186115,0.17822,94202.0,94201.0,0.3261225]
[1746462186524,0.12332,94202.0,94201.0,0.3261225]
[1746462187322,0.06852,94202.0,94201.0,0.3261225]
[1746462187528,0.0548,94211.0,94210.0,0.2123023]
[1746462187717,0.12332,94211.0,94210.0,0.2123023]
[1746462188227,0.12332,94211.0,94210.0,0.3764023]
[1746462190224,0.12432,94211.0,94210.0,0.3764023]
[1746462191028,0.0558,94211.0,94210.0,0.3764023]
[1746462193028,0.0548,94211.0,94210.0,0.3764023]
[1746462193527,0.0558,94211.0,94210.0,0.3764023]
[1746462194524,0.0558,94211.0,94210.0,0.37512993]
[1746462197029,0.2681,94211.0,94210.0,0.37512993]
[1746462197227,0.0558,94211.0,94210.0,0.37512993]
[1746462197425,0.3251,94211.0,94210.0,0.37512993]
[1746462197631,0.1128,94211.0,94210.0,0.37512993]
[1746462197834,0.3251,94211.0,94210.0,0.37512993]
[1746462198125,0.1128,94211.0,94210.0,0.37512993]
[1746462207235,0.1128,94211.0,94205.0,0.3608]
[1746462207431,0.0546,94210.0,94209.0,0.2123045]
[1746462207625,0.2669023,94210.0,94209.0,0.2123045]
[1746462207930,0.3760023,94210.0,94209.0,0.2123045]
[1746462208123,0.1637,94210.0,94209.0,0.2123045]
[1746462208327,0.1091,94210.0,94209.0,0.2123045]
[1746462209937,0.0558,94210.0,94209.0,0.2123045]
[1746462218042,0.0558,94210.0,94209.0,0.2133045]
[1746462218747,0.0558,94210.0,94209.0,0.2123045]
[1746462219042,0.0558,94210.0,94209.0,0.2133045]
[1746462221347,0.0558,94210.0,94209.0,0.2123045]
[1746462221547,0.0558,94210.0,94209.0,0.2133045]
[1746462225152,0.0558,94210.0,94209.0,0.3245045]
[1746462244064,0.2681023,94210.0,94209.0,0.001]
[1746462244361,0.3227023,94210.0,94209.0,0.2133045]
[1746462244566,0.3227023,94210.0,94209.0,0.001]
[1746462244757,0.1104,94210.0,94209.0,0.2133045]
[1746462244958,0.3227023,94210.0,94209.0,0.2133045]
[1746462248569,0.1104,94210.0,94209.0,0.2133045]
[1746462249057,0.3764023,94210.0,94209.0,0.2133045]
[1746462249458,0.1641,94210.0,94209.0,0.2133045]
[1746462250465,0.1095,94210.0,94209.0,0.2133045]
[1746462250769,0.06784,94212.0,94211.0,0.2123]
[1746462251467,0.06784,94212.0,94211.0,0.2646]
[1746462251863,0.12374,94212.0,94211.0,0.2646]
[1746462252065,0.3906377,94212.0,94211.0,0.1069]
[1746462252381,0.3906377,94212.0,94211.0,0.3192]
[1746462252674,0.17834,94212.0,94211.0,0.3192]
[1746462254572,0.1105,94212.0,94211.0,0.3192]
[1746462254773,0.0025,94220.0,94219.0,0.212282]
[1746462254971,0.1025,94220.0,94219.0,0.573082]
[1746462255168,0.0025,94220.0,94219.0,0.626282]
[1746462256174,0.0025,94220.0,94219.0,0.683382]
[1746462257767,0.0025,94220.0,94219.0,0.684382]
[1746462257969,0.0025,94220.0,94219.0,0.685382]
[1746462258674,0.0025,94220.0,94219.0,1.101582]
[1746462258975,0.0025,94220.0,94219.0,1.102582]
[1746462268774,0.01056267,94230.0,94229.0,0.2122594]
[1746462269082,0.0025,94230.0,94229.0,0.5730594]
[1746462269779,0.0025,94230.0,94229.0,0.6863594]
[1746462270581,0.0035,94230.0,94229.0,0.6863594]
[1746462271085,0.0035,94230.0,94229.0,0.69680226]
[1746462271379,0.0035,94230.0,94229.0,0.69880226]
[1746462271981,0.0025,94230.0,94229.0,0.69980226]
[1746462272483,0.0025,94230.0,94229.0,0.69880226]
[1746462272676,0.0025,94230.0,94229.0,0.69980226]
[1746462273578,0.0025,94230.0,94229.0,0.69880226]
[1746462275985,0.004,94240.0,94239.0,0.2122369]
[1746462276184,0.004,94240.0,94239.0,0.5730369]
[1746462276379,0.06776,94269.0,94259.0,0.2121919]
[1746462276585,0.1065,94265.0,94259.0,0.2121919]
[1746462277285,0.1065,94265.0,94259.0,0.2682919]
[1746462277479,0.1065,94265.0,94259.0,0.3213919]
[1746462278077,0.0055,94260.0,94259.0,0.3213919]
[1746462279685,0.0055,94260.0,94259.0,0.33201663]
[1746462281684,0.0095,94260.0,94259.0,0.33201663]
[1746462281985,0.0095,94260.0,94259.0,0.27891663]
[1746462285587,0.0065,94260.0,94259.0,0.27891663]
[1746462285884,0.0045,94260.0,94259.0,0.27891663]
[1746462292082,0.0583,94260.0,94259.0,0.27891663]
[1746462294877,0.0045,94260.0,94259.0,0.27891663]
[1746462295190,0.0045,94260.0,94259.0,0.33521663]
[1746462305591,0.0045,94260.0,94259.0,0.27891663]
[1746462313398,0.2122031,94254.0,94253.0,0.4162]
[1746462313895,0.3122031,94254.0,94253.0,0.4162]
[1746462314291,0.4759031,94254.0,94253.0,0.4162]
[1746462314798,0.4759031,94254.0,94253.0,0.4172]
[1746462314998,0.4759031,94254.0,94253.0,0.4182]
[1746462315595,0.3759031,94254.0,94253.0,0.4182]
[1746462315797,0.4819991,94254.0,94253.0,0.002]
[1746462315997,0.5496391,94254.0,94253.0,0.002]
[1746462316193,0.4435431,94254.0,94253.0,0.002]
[1746462317590,0.4435431,94254.0,94253.0,0.2142054]
[1746462317992,0.3759031,94254.0,94253.0,0.2142054]
[1746462318194,0.0025,94260.0,94259.0,0.2121919]
[1746462318692,0.0025,94260.0,94259.0,0.3229919]
[1746462322093,0.0025,94260.0,94259.0,0.3759919]
[1746462326407,0.0025,94260.0,94259.0,0.7367919]
[1746462330602,0.2146896,94260.0,94259.0,0.3207919]
[1746462330804,0.2146896,94260.0,94259.0,0.2677919]
[1746462331708,0.1144,94260.0,94259.0,0.2677919]
[1746462332008,0.3265896,94260.0,94259.0,0.2677919]
[1746462332307,0.1144,94260.0,94259.0,0.2677919]
[1746462332509,0.3265896,94260.0,94259.0,0.2677919]
[1746462332914,0.1144,94260.0,94259.0,0.2677919]
[1746462333809,0.1144,94260.0,94259.0,0.3246919]
[1746462335508,0.3265896,94260.0,94259.0,0.3246919]
[1746462335805,0.3265896,94260.0,94259.0,0.2677919]
[1746462336500,0.1144,94260.0,94259.0,0.2677919]
[1746462337101,0.0025,94260.0,94259.0,0.3209919]
[1746462338310,0.2122031,94254.0,94253.0,0.2122054]
[1746462338805,0.2122076,94252.0,94251.0,0.2680078]
[1746462339202,0.3205033,94254.0,94253.0,0.2122031]
[1746462339609,0.3205033,94254.0,94253.0,0.2690031]
[1746462340413,0.3205033,94254.0,94253.0,0.2700031]
[1746462341013,0.3205033,94254.0,94253.0,0.0578]
[1746462341614,0.3205033,94254.0,94253.0,0.2700054]
[1746462342513,0.3205033,94254.0,94253.0,0.0578]
[1746462342714,0.3205033,94254.0,94253.0,0.002]
[1746462343414,0.3205033,94254.0,94253.0,0.2142054]
[1746462345306,0.3880633,94254.0,94253.0,0.2142054]
[1746462346106,0.3880633,94254.0,94253.0,0.002]
[1746462346313,0.3880633,94254.0,94253.0,0.2142054]
[1746462346613,0.4880633,94254.0,94253.0,0.002]
[1746462346803,0.70025615,94254.0,94253.0,0.002]
[1746462347207,0.70125615,94254.0,94253.0,0.001]
[1746462348113,0.59516015,94254.0,94253.0,0.001]
[1746462349018,0.2122167,94248.0,94247.0,0.0538]
[1746462349609,0.2122167,94248.0,94247.0,0.2660189]
[1746462349810,0.3200167,94248.0,94247.0,0.2660189]
[1746462352121,0.3200167,94248.0,94247.0,0.0538]
[1746462353721,0.3200167,94248.0,94247.0,0.2660189]
[1746462353921,0.3200167,94248.0,94247.0,0.0538]
[1746462354314,0.2122302,94242.0,94241.0,0.0534]
[1746462354514,0.2122302,94242.0,94241.0,0.2656324]
[1746462355627,0.0530486,94258.0,94241.0,0.0544]
[1746462355828,0.2652523,94257.0,94256.0,0.2652404]
[1746462356126,0.3874523,94257.0,94256.0,0.2652404]
[1746462356826,0.3874523,94257.0,94254.0,0.3738031]
[1746462356827,0.2122009,94255.0,94254.0,0.3738031]
[1746462357432,0.2668009,94255.0,94254.0,0.3738031]
[1746462358530,0.2688009,94255.0,94254.0,0.3738031]
[1746462359229,0.2708009,94255.0,94254.0,0.3738031]
[1746462362130,0.2162009,94255.0,94254.0,0.3738031]
[1746462362439,0.2719009,94255.0,94254.0,0.3738031]
[1746462370745,0.004,94255.0,94254.0,0.3738031]
[1746462372746,0.0025,94260.0,94259.0,0.2121919]
[1746462373045,0.2146898,94260.0,94259.0,0.2121919]
[1746462373637,0.2146896,94260.0,94259.0,0.3231919]
[1746462373844,0.2156896,94260.0,94259.0,0.3231919]
[1746462374039,0.0035,94260.0,94259.0,0.3231919]
[1746462375746,0.0045,94260.0,94259.0,0.3231919]